Cogmind - Beta 13 X2 @@@ ROGUE MODE // 2024.01.10 @ 22:42:53 Player: arkn Result: Destroyed by G-34 Mercenary with Small Laser Performance ------------- Evolutions (0) 0 Regions Visited (2) 400 Robots Destroyed (8) 40 Value Destroyed (174) 174 Prototype IDs (0) 0 Alien Tech Used (0) 0 Bonus (0) 0 TOTAL SCORE: 614 Bonus ------- None Cogmind --------- Core Integrity 0/250 Matter 435/500 Energy 80/100 System Corruption 0% Temperature Cool (6) Movement Core (200) Ox3 Location -10/Mines Parts ------- > --- POWER (1) -------- (None) > --- PROPULSION (2) --- (None) > --- UTILITY (2) ------ Small Storage Unit High-capacity Matter Pod > --- WEAPON (2) ------- Grenade Launcher > --- INVENTORY (8) ---- Ion Engine Light Treads Light Treads Compact Wheel ECM Suite Peak State ------------ > --- POWER ------------ Light Nuclear Core > --- PROPULSION ------- Aluminum Leg Aluminum Leg > --- UTILITY ---------- Small Storage Unit High-capacity Matter Pod > --- WEAPON ----------- EM Pulse Gun EM Pulse Gun > --- INVENTORY -------- Ion Engine Light Treads Light Treads Compact Wheel Small Laser Grenade Launcher Mining Laser [Rating: 9] Favorites ----------- Power Light Nuclear Core Engine Ion Engine Power Core Light Nuclear Core Propulsion Aluminum Leg Leg Aluminum Leg Utility Small Storage Unit Storage Small Storage Unit Weapon EM Pulse Gun Energy Gun EM Pulse Gun Launcher Grenade Launcher Special Weapon Mining Laser Build | -11 -10 -10 ------- Run | Yrd Mat Min Slots Evolved . | . . . Power . | . . . Propulsion . | . . . Utility . | . . . Weapon . | . . . Parts Attached 8 | . 2 6 Power 1 | . 1 . Engine . | . . . Core 1 | . 1 . Reactor . | . . . Propulsion . | . . . Treads . | . . . Leg . | . . . Wheel . | . . . Hover . | . . . Flight . | . . . Utility 1 | . . 1 Device . | . . . Storage 1 | . . 1 Processor . | . . . Hackware . | . . . Protection . | . . . Artifact . | . . . Weapon 6 | . 1 5 Energy Gun 3 | . 1 2 Energy Cannon . | . . . Ballistic Gun . | . . . Ballistic Cannon . | . . . Launcher 2 | . . 2 Special Weapon 1 | . . 1 Impact Weapon . | . . . Slashing Weapon . | . . . Piercing Weapon . | . . . Special Melee Weapon . | . . . Unidentified Prototypes . | . . . Parts Lost 7 | . . 7 Power 1 | . . 1 Propulsion 2 | . . 2 Utility . | . . . Weapon 4 | . . 4 Highest Loss Streak 7 | . . 7 To Critical Strikes . | . . . Average Slot Usage (%) 96 | . 85 97 Engine 1 | . 10 . Core 12 | . 3 13 Leg 27 | . 28 27 Storage 26 | . 14 27 Energy Gun 17 | . 28 16 Launcher 9 | . . 10 Naked Turns . | . . . Heaviest Build 19 | 13 14 19 Greatest Support 20 | 20 20 20 Greatest Overweight (x) 2 | . . 2 Average Overweight (x) . | . . . Largest Inventory Capacity 8 | 8 8 8 Average Capacity 8 | 8 8 8 Most Carried 8 | 7 8 8 Average Carried 7 | 6 7 7 Final Capacity 8 | 8 8 8 Final Carried 8 | 7 8 5 Class Distribution -------------------- 100% | Mutant Dominant Class ---------------- Mutant | -10/Materials Mutant | -10/Mines Resources | -11 -10 -10 ----------- Run | Yrd Mat Min Matter Collected 373 | 200 54 119 Remotely . | . . . Salvage Created 274 | 88 54 132 Parts 20 | 4 3 13 Haulers Intercepted . | . . . Recyclers Shooed 2 | 1 . 1 Parts Field Recycled . | . . . Retrieved Matter . | . . . Parts Self-Destructed . | . . . Prevented . | . . . Kills | -11 -10 -10 ------- Run | Yrd Mat Min Combat Hostiles Destroyed 4 | . 1 3 Guns 3 | . 1 2 AOE 1 | . . 1 Classes Destroyed 4 | 2 1 1 Builder 1 | . . 1 Tunneler 2 | 1 . 1 Recycler 1 | 1 . . Grunt 4 | . 1 3 Best Kill Streak 4 | 2 1 4 Combat Bots Only 2 | . 1 2 Max Kills in Single Turn 2 | 1 1 2 Gunslinging . | . . . Exploded 1 | . . 1 Melee . | . . . Uniques/NPCs Destroyed . | . . . Combat | -11 -10 -10 -------- Run | Yrd Mat Min Hostile Shots Fired 87 | . 6 81 Missed 18 | . 2 16 Damage Taken 799 | . 58 741 Core 257 | . . 257 Absorbed by Shields . | . . . Core Remaining (%) 100 | 100 . . Volleys Fired 28 | 4 6 18 Largest 2 | 2 2 2 Hottest 140 | 80 80 140 Shots Fired 52 | 8 12 32 Gun 49 | 8 12 29 Cannon . | . . . Launcher . | . . . Special 3 | . . 3 Kinetic . | . . . Thermal 17 | 4 . 13 Explosive . | . . . Electromagnetic 35 | 4 12 19 Robot Hit Streak 6 | 6 4 4 Robot Miss Streak 5 | 1 4 5 Penetration Max . | . . . Secondary Targets 1 | . . 1 Max Gunslinging Chain 1 | . . 1 Shots Hit Robots 29 | 6 5 18 Core Hits 14 | 3 3 8 Critical Kills . | . . . Critical Parts Destroyed . | . . . Critical Strikes . | . . . Melee Attacks . | . . . Impact . | . . . Slashing . | . . . Piercing . | . . . Sneak Attacks . | . . . Combat Hostiles . | . . . Follow-up Attacks . | . . . Damage Inflicted 479 | 74 70 335 Guns 349 | 74 70 205 Cannons . | . . . Explosions 98 | . . 98 Melee . | . . . Ramming 8 | . . 8 Kinetic . | . . . Thermal 251 | 33 . 218 Explosive . | . . . Electromagnetic 220 | 41 70 109 Impact . | . . . Slashing . | . . . Piercing . | . . . Highest Corruption . | . . . Average Corruption . | . . . Corruption Purged . | . . . Corruption Blocked . | . . . Overload Shots . | . . . Overflow Damage 27 | . . 27 Projectiles . | . . . Explosions 27 | . . 27 Melee . | . . . Knockbacks . | . . . Impact . | . . . Kinetic . | . . . Secondary . | . . . Self-Inflicted Damage 39 | . . 39 Shots 1 | . . 1 Rammed . | . . . Targets Rammed 2 | . . 2 Kicked 2 | . . 2 Crushed . | . . . Highest Temperature 474 | 54 135 474 Average Temperature 166 | 32 72 216 Received Heat Transfer 426 | . 36 390 Effects 5 | . . 5 Shutdowns 2 | . . 2 Energy Bleed 1 | . . 1 Short Circuit 1 | . . 1 Damage (minor) 1 | . . 1 Siege Activations . | . . . Robots Corrupted . | . . . Combat Hostiles . | . . . Parts Fried 2 | 1 1 . Impact Corruptions . | . . . Robots Melted . | . . . Combat Hostiles . | . . . Parts Melted . | . . . Heat Transferred 550 | 75 . 475 Parts Sabotaged . | . . . Parts Stolen . | . . . Parts Stripped . | . . . Power Chain Reactions 1 | . . 1 Missiles Intercepted . | . . . Alert | -11 -10 -10 ------- Run | Yrd Mat Min Peak Influence 70 | 10 70 61 Initial 27 | . 6 27 Average 12 | 7 31 10 Maximum Alert Level . | . . . Low Security (%) 100 | 100 100 100 Level 1 . | . . . Level 2 . | . . . Level 3 . | . . . Level 4 . | . . . Level 5 . | . . . High Security . | . . . Max Security . | . . . Squads Dispatched 2 | . 2 . Investigation 1 | . 1 . Extermination . | . . . Reinforcement 1 | . 1 . Assault . | . . . Garrison . | . . . Intercept . | . . . Searches Triggered . | . . . Construction Impeded . | . . . Haulers Reinforced . | . . . Active Scanning Responses . | . . . Cargo Convoy Interrupts . | . . . Stealth | -11 -10 -10 --------- Run | Yrd Mat Min Distress Signals 1 | . 1 . Communications Jammed . | . . . Distress Signals . | . . . Times Spotted 20 | . 4 16 Peak Tracking Total 14 | . 4 14 Tactical Retreats 1 | . 1 . Traps | -11 -10 -10 ------- Run | Yrd Mat Min Traps Triggered 1 | . 1 . Indirectly . | . . . Trap Hack Attempts . | . . . Triggered . | . . . Disarmed . | . . . Reprogrammed . | . . . Reused . | . . . Traps Extracted . | . . . Installed . | . . . Triggered . | . . . Machines | -11 -10 -10 ---------- Run | Yrd Mat Min Machines Disabled . | . . . Max in Single Turn . | . . . Machines Repaired . | . . . Machines Dismantled . | . . . Machines Sabotaged . | . . . Overloaded Fab Kills . | . . . Hacking | -11 -10 -10 --------- Run | Yrd Mat Min Machines Accessed 2 | . 2 . Terminals 2 | . 2 . Fabricators . | . . . Repair Stations . | . . . Recycling Units . | . . . Scanalyzers . | . . . Garrison Access . | . . . Total Hacks 4 | . 4 . Successful 2 | . 2 . Failed 2 | . 2 . Catastrophic 1 | . 1 . Database Lockouts . | . . . Manual 3 | . 3 . Terminals 4 | . 4 . Fabricators . | . . . Repair Stations . | . . . Recycling Units . | . . . Scanalyzers . | . . . Garrison Access . | . . . Terminal Hacks 1 | . 1 . Zone Layout 1 | . 1 . Fabricator Hacks . | . . . Repair Station Hacks . | . . . Recycling Unit Hacks . | . . . Scanalyzer . | . . . Garrison Access Hacks . | . . . Unauthorized Hacks 1 | . 1 . Terminals 1 | . 1 . Botnet 1 | . 1 . Fabricators . | . . . Repair Stations . | . . . Recycling Units . | . . . Scanalyzers . | . . . Garrison Access . | . . . Data Cores Recovered . | . . . Used . | . . . Hacking Detections 2 | . 2 . Full Trace Events . | . . . Feedback Events . | . . . Feedback Blocked . | . . . Robot Schematics Acquired . | . . . Robots Built . | . . . Authchips . | . . . Time . | . . . Total Robot Build Rating . | . . . Part Schematics Acquired . | . . . Parts Built . | . . . Authchips . | . . . Time . | . . . Total Part Build Rating . | . . . Parts Repaired . | . . . Time . | . . . Parts Recycled . | . . . Recycled Matter . | . . . Retrieved Matter . | . . . Retrieved Components . | . . . Parts Scanalyzed . | . . . Part Schematics Acquired . | . . . Parts Damaged . | . . . Bothacking | -11 -10 -10 ------------ Run | Yrd Mat Min Used RIF Installer . | . . . Robots Hacked . | . . . Non-combat . | . . . Combat . | . . . Robot Hacks Applied . | . . . Relay Couplers Released . | . . . Fabnet Peak Effective % . | . . . Robots Rewired . | . . . Allies Hacked . | . . . Hacks Repelled . | . . . Allies | -11 -10 -10 -------- Run | Yrd Mat Min Total Allies . | . . . Largest Group . | . . . Highest-Rated Group . | . . . Highest-Rated Ally . | . . . Total Orders . | . . . Ally Attacks . | . . . Total Damage . | . . . Kills . | . . . Allies Corrupted . | . . . Allies Melted . | . . . Intel | -11 -10 -10 ------- Run | Yrd Mat Min Robot Analysis Total . | . . . Derelict Logs Recovered 1 | . . 1 Drone Launches . | . . . Drone Recoveries . | . . . Exploration | -11 -10 -10 ------------- Run | Yrd Mat Min Turns Passed 1474 | 24 149 1301 Spaces Moved 318 | 10 104 204 Core 6 | . . 6 Treads . | . . . Legs 312 | 10 104 198 Wheels . | . . . Hover . | . . . Flight . | . . . Fastest Speed 120 | 120 120 120 Average Speed 121 | 120 120 121 Slowest Speed 190 | 120 120 190 Overloaded Moves . | . . . Propulsion Burnouts . | . . . Robots Hopped . | . . . Cave-ins Triggered . | . . . Exploration Rate (%) 21 | 2 19 42 Regions Visited 2 Branch Regions 1 Pre-discovered Areas . | . . . Known Exits Taken . | . . . Unknown Exits Taken 2 | 1 1 . Scrap Searched 1 | . . 1 Spaces Dug . | . . . Terrain Destroyed 8 | . . 8 Melee . | . . . Projectile 2 | . . 2 AOE 6 | . . 6 Terrain Rammed . | . . . Walls Destroyed . | . . . Machines Disabled . | . . . Actions | -11 -10 -10 --------- Run | Yrd Mat Min Total 1347 | 14 116 1217 Wait 986 | . . 986 Move 316 | 9 103 204 Hop . | . . . Pick Up 5 | 1 3 1 Fast Attach . | . . . Attach 4 | . . 4 Detach . | . . . Swap 4 | . 2 2 Drop 2 | . 2 . Fire 28 | 4 6 18 Melee . | . . . Ram . | . . . Kick 2 | . . 2 Crush . | . . . Escape Stasis . | . . . Rewire . | . . . Trap . | . . . Miscellaneous . | . . . Route ------- -11/Scrapyard -10/Materials -10/Mines History --------- Turn | Location | Event 14 | -11/Scrapyard | Discovered new exit (range 3) 25 | -11/Scrapyard | Entered Materials 158 | -10/Materials | Discovered new exit (range 13) 174 | -10/Materials | Entered Mines 308 | -10/Mines | Build established: Mutant 345 | -10/Mines | Excavation squad dispatched 345 | -10/Mines | A large section of the Mines collapsed 595 | -10/Mines | Excavation squad dispatched 845 | -10/Mines | Excavation squad dispatched 1095 | -10/Mines | Excavation squad dispatched 1345 | -10/Mines | Excavation squad dispatched 1461 | -10/Mines | Core integrity fell below 50% 1472 | -10/Mines | Core integrity fell below 20% 1475 | -10/Mines | Destroyed by G-34 Mercenary with Small Laser Last Messages --------------- 01433_ U-05 Engineer destroyed. 01433_ G-34 Mercenary IFF system glitched. 01433_ U-05 Engineer destroyed. 01433_ K-01 Serf collects debris. 01435_ Power failure, Lgt. Nuclear Core shutdown. 01438_ K-01 Serf collects debris. 01439_ Mining Laser destroyed. 01442_ K-01 Serf collects debris. 01444_ Overheating: Energy bleed (-20). 01446_ Power failure, Lgt. Nuclear Core shutdown. 01449_ Overheating: Sml. Storage Unit damaged (-52). 01449_ Acquired 28 matter. 01449_ G-34 Mercenary IFF system glitched. 01450_ Sml. Laser broken. 01450_ Overheating: Short circuit. 01450_ Acquired 27 matter. 01451_ Lgt. Nuclear Core destroyed. 01460_ Kicked G-34 Mercenary. 01462_ Broken Sml. Laser destroyed. 01464_ Aluminum Leg destroyed. Map ----- +----------------------------------------------------+ | ???????????????????#???????# #?????????? ???# | | ??????????????????? ??????## #???????????#??# | | ??????????????????? ??????# #??????????????## | | ??????????????????#%#?????# ##??????????????# | | ??????????????????# #????## ##?????????????# | | ??????????????????# #????# ##????????????# | | ????###???????????#%#????# #????????????## | | ????# ##?#####????# #????# #?????????????## | | ????# ###!#%##???#"#????## ##??????????????? | | ???## * ==!%*#???#%#????## ##???????????????? | | ??## = ####"%###??# #???## t ##???????????????? | | ??# [ ==! =!#??# #???# tt ######??????????? | | ??# #####| |#??# #??##t #?????????? | | ??# #???### #### #### gg #?????????? | | ??# #?????# ##t## t gg #### #?????????? | | ??# ##?????### ##g## #???? #?????????? | | ??# #######??# % #???????????????? | | ??## ## ##?# % ##??????????????? | | ???## #?###### g t #??????????????? | | ????# ##??????# gg #??????????????? | | ???# """ ##???????#ggg """ #??????????????? | | ??# """ ##????????# """ #?????????????? | | ?# """ #?????????# """ #?????????????? | | ?# #?????????## #?????????????? | | ?## ##??????????## #### ##?????????????? | | ??########????????????###@ #???? #??????????????? | | ????????????????????????# #????? ???????????????? | | ????????????????????????#k #????????????????????? | | ???????????????????????? ???????????????????? | | ???????????????????????? ##??????????????????? | | ???????????????????????? ##???????????????????? | | ???????????????????????? ##????????????????????? | | ??????????????????????? ##?????????????????????? | | ??????????????????????? #??????????????????????? | | ??????????????????????? #???????????????????????? | | ??????????????????????? #????????????????????????? | | ?????????????????????? ?????????????????????????? | | ?????????????????????? ?????????????????????????? | | ?????????????????????? ?????????????????????????? | | ?????????????????????? ??????????????????????????? | | ?????????????????????????????????????????????????? | | ?????????????????????????????????????????????????? | | ?????????????????????????????????????????????????? | | ?????????????????????????????????????????????????? | | ?????????????????????????????????????????????????? | | ?????????????????????????????????????????????????? | | ?????????????????????????????????????????????????? | | ?????????????????????????????????????????????????? | | ?????????????????????????????????????????????????? | | ?????????????????????????????????????????????????? | +----------------------------------------------------+ Best States ------------- Heat Dissipation 25 Energy Generation 14 Energy Capacity 250 Matter Stores 445 Matter Capacity 500 Sight Range 16 Terrain Scan Density 10 Evasion (%) 55 Item Schematics ----------------- None Robot Schematics ------------------ None Fabricated ------------ Nothing Alien Tech Used ----------------- None Achievements -------------- None Challenges ------------ None Game ------ Seed CorruptionComponentTube Manual? 0 Play Time 00:09:25 Cumulative 100.0 hours Start 2024.01.10 @ 22:36:39 End 2024.01.10 @ 22:42:53 Sessions 1 Manual Loads 0 Difficulty Rogue Special Mode None Game No. 96 Rogue 96 Adventurer 0 Explorer 0 Win Type - Total 0 Types 0/0/0/0/0/0/0/0/0 Lore% 34 Gallery% 47 Achievement% 36 Wizard Run 0 Options --------- ASCII 0 Keyboard 0 Movement Numpad Keybinds 0 Fullscreen 1 Font 24/Proggy Map View 113x50 Zoom Use 0% Tactical HUD 1 Map Filters NONE Filters NONE Steam 1 RUN: 474476a0-59f2-4050-87f1-004701ef4d4b